fUSD/lending_fUSD_20240826
["ID","MTS","AMOUNT","RATE_DAILY","PERIOD"]
[336134022,1724706648910,-500.0,0.00010979,2]
[336134024,1724706648920,-500.0,0.00010979,2]
[336134026,1724706648929,-500.0,0.00010979,2]
[336134028,1724706648938,-500.0,0.00010979,2]
[336134030,1724706648947,-500.0,0.00010979,2]
[336134031,1724706648957,-500.0,0.00010979,2]
[336134033,1724706648966,-500.0,0.00010979,2]
[336134035,1724706648976,-500.0,0.00010979,2]
[336134037,1724706648985,-500.0,0.00010979,2]
[336134039,1724706648994,-500.0,0.00010979,2]
[336134041,1724706649004,-500.0,0.00010979,2]
[336134043,1724706649014,-500.0,0.00010979,2]
[336134046,1724706649024,-500.0,0.00010979,2]
[336134048,1724706649034,-735.75,0.00010979,2]
[336134050,1724706649044,-735.75,0.00010979,2]
[336134051,1724706649054,-735.75,0.00010979,2]
[336134054,1724706649064,-500.0,0.00010979,2]
[336134055,1724706649074,-500.0,0.00010979,2]
[336134057,1724706649084,-500.0,0.00010979,2]
[336134059,1724706649094,-500.0,0.00010979,2]
[336134061,1724706649104,-500.0,0.00010979,2]
[336134063,1724706649113,-500.0,0.00010979,2]
[336134065,1724706649123,-712.04,0.00010979,2]
[336134067,1724706649132,-712.04,0.00010979,2]
[336134069,1724706649142,-712.04,0.00010979,2]
[336134072,1724706649152,-527.35,0.00010979,2]
[336134074,1724706649162,-1884.14,0.00010979,2]
[336134076,1724706649172,-527.35,0.00010979,2]
[336134078,1724706649182,-1884.14,0.00010979,2]
[336134080,1724706649192,-527.35,0.00010979,2]
[336134082,1724706649202,-1884.14,0.00010979,2]
[336134084,1724706649211,-1884.14,0.00010979,2]
[336134086,1724706649222,-1284.88,0.00010979,2]
[336134088,1724706649231,-1284.88,0.00010979,2]
[336134090,1724706649241,-1284.88,0.00010979,2]
[336134092,1724706649250,-1284.88,0.00010979,2]
[336134094,1724706649260,-711.4,0.00010979,2]
[336134096,1724706649270,-711.4,0.00010979,2]
[336134098,1724706649280,-711.4,0.00010979,2]
[336134100,1724706649290,-366.630397,0.00010979,2]
[336134102,1724706649300,-366.630397,0.00010979,2]
[336134104,1724706649309,-500.0,0.00010979,2]
[336134106,1724706649319,-500.0,0.00010979,2]
[336134108,1724706649330,-500.0,0.00010979,2]
[336134110,1724706649340,-500.0,0.00010979,2]
[336134112,1724706649350,-500.0,0.00010979,2]
[336134114,1724706649359,-500.0,0.00010979,2]
[336134116,1724706649369,-500.0,0.00010979,2]
[336134118,1724706649379,-500.0,0.00010979,2]
[336134120,1724706649389,-500.0,0.00010979,2]
[336134122,1724706649399,-500.0,0.00010979,2]
[336134124,1724706649409,-500.0,0.00010979,2]
[336134126,1724706649419,-500.0,0.00010979,2]
[336134128,1724706649429,-500.0,0.00010979,2]
[336134130,1724706649439,-500.0,0.00010979,2]
[336134132,1724706649449,-500.0,0.00010979,2]
[336134134,1724706649459,-500.0,0.00010979,2]
[336134136,1724706649469,-646.84,0.00010979,2]
[336134138,1724706649479,-646.84,0.00010979,2]
[336134140,1724706649489,-646.84,0.00010979,2]
[336134142,1724706649498,-646.84,0.00010979,2]
[336134144,1724706649508,-1215.46,0.00010979,2]
[336134146,1724706649517,-1215.46,0.00010979,2]
[336134148,1724706649527,-1215.46,0.00010979,2]
[336134150,1724706649537,-1215.46,0.00010979,2]
[336134152,1724706649547,-500.0,0.00010979,2]
[336134154,1724706649556,-500.0,0.00010979,2]
[336134156,1724706649566,-500.0,0.00010979,2]
[336134158,1724706649576,-210.143586,0.00010979,2]
[336134160,1724706649586,-210.143586,0.00010979,2]
[336134162,1724706649595,-1086.37,0.00010979,2]
[336134164,1724706649605,-1086.37,0.00010979,2]
[336134166,1724706649616,-1086.37,0.00010979,2]
[336134168,1724706649626,-210.143586,0.00010979,2]
[336134170,1724706649636,-1086.37,0.00010979,2]
[336134173,1724706649647,-210.143586,0.00010979,2]
[336134175,1724706649657,-500.0,0.00010979,2]
[336134177,1724706649667,-500.0,0.00010979,2]
[336134179,1724706649677,-500.0,0.00010979,2]
[336134181,1724706649686,-500.0,0.00010979,2]
[336134182,1724706649696,-500.0,0.00010979,2]
[336134184,1724706649706,-500.0,0.00010979,2]
[336134187,1724706649716,-500.0,0.00010979,2]
[336134189,1724706649726,-500.0,0.00010979,2]
[336134191,1724706649736,-500.0,0.00010979,2]
[336134193,1724706649746,-500.0,0.00010979,2]
[336134195,1724706649756,-197.094884,0.00010979,2]
[336134197,1724706649766,-197.094884,0.00010979,2]
[336134199,1724706649780,-197.094884,0.00010979,2]
[336134201,1724706649791,-197.094884,0.00010979,2]
[336134203,1724706649801,-500.0,0.00010979,2]
[336134205,1724706649811,-500.0,0.00010979,2]
[336134207,1724706649821,-500.0,0.00010979,2]
[336134209,1724706649831,-500.0,0.00010979,2]
[336134211,1724706649842,-500.0,0.00010979,2]
[336134213,1724706649852,-500.0,0.00010979,2]
[336134215,1724706649862,-500.0,0.00010979,2]
[336134217,1724706649871,-558.85,0.00010979,2]
[336134219,1724706649881,-558.85,0.00010979,2]
[336134221,1724706649892,-558.85,0.00010979,2]
[336134223,1724706649902,-500.0,0.00010979,2]
[336134225,1724706649911,-500.0,0.00010979,2]
[336134227,1724706649921,-500.0,0.00010979,2]
[336134229,1724706649931,-592.93,0.00010979,2]
[336134231,1724706649940,-617.18,0.00010979,2]
[336134233,1724706649950,-592.93,0.00010979,2]
[336134235,1724706649960,-617.18,0.00010979,2]
[336134237,1724706649970,-592.93,0.00010979,2]
[336134239,1724706649979,-617.18,0.00010979,2]
[336134241,1724706649990,-617.18,0.00010979,2]
[336134242,1724706650006,-500.0,0.00010979,2]
[336134244,1724706650015,-500.0,0.00010979,2]
[336134246,1724706650025,-500.0,0.00010979,2]
[336134248,1724706650035,-500.0,0.00010979,2]
[336134251,1724706650045,-500.0,0.00010979,2]
[336134253,1724706650055,-500.0,0.00010979,2]
[336134255,1724706650064,-1474.56,0.00010979,2]
[336134257,1724706650074,-572.75,0.00010979,2]
[336134259,1724706650083,-1474.56,0.00010979,2]
[336134261,1724706650093,-572.75,0.00010979,2]
[336134263,1724706650102,-1474.56,0.00010979,2]
[336134265,1724706650112,-572.75,0.00010979,2]
[336134267,1724706650122,-1474.56,0.00010979,2]
[336134269,1724706650132,-685.88,0.00010979,2]
[336134271,1724706650142,-685.88,0.00010979,2]
[336134273,1724706650152,-624.69,0.00010979,2]
[336134275,1724706650161,-624.69,0.00010979,2]
[336134277,1724706650171,-624.69,0.00010979,2]
[336134279,1724706650181,-685.88,0.00010979,2]
[336134281,1724706650191,-500.0,0.00010979,2]
[336134283,1724706650201,-500.0,0.00010979,2]
[336134285,1724706650211,-500.0,0.00010979,2]
[336134287,1724706650221,-500.0,0.00010979,2]
[336134289,1724706650230,-500.0,0.00010979,2]
[336134291,1724706650240,-500.0,0.00010979,2]
[336134293,1724706650250,-638.44,0.00010979,2]
[336134295,1724706650260,-638.44,0.00010979,2]
[336134297,1724706650270,-638.44,0.00010979,2]
[336134299,1724706650280,-1291.25,0.00010979,2]
[336134301,1724706650291,-1291.25,0.00010979,2]
[336134303,1724706650301,-1291.25,0.00010979,2]
[336134305,1724706650311,-500.0,0.00010979,2]
[336134307,1724706650321,-500.0,0.00010979,2]
[336134309,1724706650332,-500.0,0.00010979,2]
[336134311,1724706650342,-500.0,0.00010979,2]
[336134313,1724706650352,-939.47,0.00010979,2]
[336134315,1724706650362,-939.47,0.00010979,2]
[336134318,1724706650372,-939.47,0.00010979,2]
[336134320,1724706650382,-564.73,0.00010979,2]
[336134322,1724706650392,-4075.615777,0.00010979,2]
[336134324,1724706650402,-564.73,0.00010979,2]
[336134326,1724706650412,-564.73,0.00010979,2]
[336134328,1724706650423,-1059.12,0.00010979,2]
[336134330,1724706650434,-1059.12,0.00010979,2]
[336134332,1724706650444,-1059.12,0.00010979,2]
[336134334,1724706650454,-1059.12,0.00010979,2]
[336134336,1724706650464,-4075.615777,0.00010979,2]
[336134338,1724706650474,-500.0,0.00010979,2]
[336134340,1724706650484,-500.0,0.00010979,2]
[336134342,1724706650501,-500.0,0.00010979,2]
[336134344,1724706650512,-500.0,0.00010979,2]
[336134347,1724706650522,-500.0,0.00010979,2]
[336134349,1724706650532,-500.0,0.00010979,2]
[336134351,1724706650543,-500.0,0.00010979,2]
[336134353,1724706650553,-623.74300728,0.00010979,2]
[336134355,1724706650563,-500.0,0.00010979,2]
[336134357,1724706650573,-500.0,0.00010979,2]
[336134359,1724706650584,-500.0,0.00010979,2]
[336134361,1724706650594,-812.29,0.00010979,2]
[336134363,1724706650604,-812.29,0.00010979,2]
[336134365,1724706650614,-812.29,0.00010979,2]
[336134367,1724706650624,-500.0,0.00010979,2]
[336134369,1724706650634,-500.0,0.00010979,2]
[336134371,1724706650644,-500.0,0.00010979,2]
[336134373,1724706650654,-542.19,0.00010979,2]
[336134375,1724706650664,-542.19,0.00010979,2]
[336134377,1724706650674,-542.19,0.00010979,2]
[336134379,1724706650684,-600.72,0.00010979,2]
[336134381,1724706650694,-600.72,0.00010979,2]
[336134383,1724706650704,-600.72,0.00010979,2]
[336134385,1724706650714,-500.0,0.00010979,2]
[336134387,1724706650724,-500.0,0.00010979,2]
[336134389,1724706650734,-500.0,0.00010979,2]
[336134391,1724706650744,-687.13,0.00010979,2]
[336134393,1724706650755,-687.13,0.00010979,2]
[336134395,1724706650765,-687.13,0.00010979,2]
[336134397,1724706650778,-500.0,0.00010979,2]
[336134399,1724706650788,-500.0,0.00010979,2]
[336134401,1724706650798,-500.0,0.00010979,2]
[336134403,1724706650807,-500.0,0.00010979,2]
[336134405,1724706650817,-500.0,0.00010979,2]
[336134407,1724706650827,-500.0,0.00010979,2]
[336134409,1724706650836,-1097.65,0.00010979,2]
[336134411,1724706650846,-1097.65,0.00010979,2]
[336134413,1724706650858,-1097.65,0.00010979,2]
[336134415,1724706650869,-1097.65,0.00010979,2]
[336134417,1724706650879,-151.0,0.00010979,2]
[336134419,1724706650889,-2561.41,0.00010979,2]
[336134421,1724706650898,-2561.41,0.00010979,2]
[336134423,1724706650908,-2561.41,0.00010979,2]
[336134425,1724706650918,-619.03,0.00010979,2]
[336134427,1724706650927,-619.03,0.00010979,2]
[336134429,1724706650937,-619.03,0.00010979,2]
[336134431,1724706650947,-619.03,0.00010979,2]
[336134433,1724706650957,-1683.82,0.00010979,2]
[336134435,1724706650967,-1683.82,0.00010979,2]
[336134437,1724706650976,-1683.82,0.00010979,2]
[336134439,1724706650986,-1683.82,0.00010979,2]
[336134441,1724706650996,-500.0,0.00010979,2]
[336134443,1724706651007,-500.0,0.00010979,2]
[336134445,1724706651016,-500.0,0.00010979,2]
[336134446,1724706651026,-500.0,0.00010979,2]
[336134448,1724706651036,-500.0,0.00010979,2]
[336134450,1724706651047,-500.0,0.00010979,2]
[336134452,1724706651058,-500.0,0.00010979,2]
[336134455,1724706651068,-500.0,0.00010979,2]
[336134457,1724706651078,-500.0,0.00010979,2]
[336134459,1724706651089,-500.0,0.00010979,2]
[336134461,1724706651099,-500.0,0.00010979,2]
[336134463,1724706651109,-500.0,0.00010979,2]
[336134465,1724706651119,-1222.07,0.00010979,2]
[336134467,1724706651129,-1222.07,0.00010979,2]
[336134469,1724706651139,-1222.07,0.00010979,2]
[336134471,1724706651149,-1222.07,0.00010979,2]
[336134473,1724706651159,-1039.78,0.00010979,2]
[336134475,1724706651169,-1039.78,0.00010979,2]
[336134477,1724706651179,-1039.78,0.00010979,2]
[336134479,1724706651190,-500.0,0.00010979,2]
[336134481,1724706651201,-500.0,0.00010979,2]
[336134483,1724706651211,-500.0,0.00010979,2]
[336134485,1724706651221,-1473.02,0.00010979,2]
[336134487,1724706651231,-1473.02,0.00010979,2]
[336134489,1724706651241,-1473.02,0.00010979,2]
[336134491,1724706651251,-1473.02,0.00010979,2]
[336134493,1724706651261,-500.0,0.00010979,2]
[336134495,1724706651271,-500.0,0.00010979,2]
[336134497,1724706651281,-500.0,0.00010979,2]
[336134499,1724706651292,-500.0,0.00010979,2]
[336134501,1724706651302,-1359.04,0.00010979,2]
[336134503,1724706651312,-500.0,0.00010979,2]
[336134505,1724706651322,-1359.04,0.00010979,2]
[336134507,1724706651332,-1359.04,0.00010979,2]
[336134509,1724706651342,-994.79,0.00010979,2]
[336134511,1724706651352,-164.59258678,0.00010979,2]
[336134513,1724706651362,-994.79,0.00010979,2]
[336134515,1724706651373,-994.79,0.00010979,2]
[336134517,1724706651382,-631.22,0.00010979,2]
[336134519,1724706651393,-631.22,0.00010979,2]
[336134521,1724706651404,-631.22,0.00010979,2]
[336134523,1724706651414,-631.22,0.00010979,2]
[336134525,1724706651423,-566.16,0.00010979,2]
[336134527,1724706651434,-566.16,0.00010979,2]
[336134529,1724706651445,-566.16,0.00010979,2]
[336134531,1724706651455,-440.57970406,0.00010979,2]
[336134533,1724706651466,-500.0,0.00010979,2]
[336134535,1724706651476,-500.0,0.00010979,2]
[336134537,1724706651487,-500.0,0.00010979,2]
[336134540,1724706651497,-594.07,0.00010979,2]
[336134542,1724706651508,-594.07,0.00010979,2]
[336134544,1724706651518,-594.07,0.00010979,2]
[336134546,1724706651528,-594.07,0.00010979,2]
[336134548,1724706651538,-500.0,0.00010979,2]
[336134549,1724706651548,-500.0,0.00010979,2]
[336134551,1724706651559,-500.0,0.00010979,2]
[336134553,1724706651569,-145747.63990598,0.0001098,2]
[336134596,1724706652007,-2216.68024884,0.0001098,2]
[336134599,1724706652019,-514.79655909,0.0001098,2]
[336134601,1724706652031,-1197.7017767,0.0001098,2]
[336134603,1724706652048,-3791.46814228,0.0001098,2]
[336134623,1724706652236,-677.83,0.00010948,2]
[336134625,1724706652245,-677.83,0.00010948,2]
[336134627,1724706652254,-677.83,0.00010948,2]
[336134629,1724706652263,-677.83,0.00010948,2]
[336134631,1724706652273,-677.83,0.00010948,2]
[336134633,1724706652283,-677.83,0.00010948,2]
[336134635,1724706652292,-628.89836017,0.00010948,2]
[336134637,1724706652304,-48.93163983,0.00010948,2]
[336134639,1724706652314,-155.0,0.00010949,2]
[336134641,1724706652323,-500.0,0.00010958,2]
[336134643,1724706652333,-500.0,0.00010958,2]
[336134645,1724706652343,-500.0,0.00010976,2]
[336134647,1724706652353,-1441.47263517,0.00010977,2]
[336134651,1724706652379,-677.83,0.00010948,2]
[336134653,1724706652390,-337.93736483,0.00010977,2]
[336134655,1724706652399,-276.172711,0.00010977,2]
[336134657,1724706652408,-500.0,0.00010977,2]
[336134659,1724706652418,-174.55135589,0.00010977,2]
[336134662,1724706652439,-325.44864411,0.00010977,2]
[336134664,1724706652449,-500.0,0.00010977,2]
[336134665,1724706652458,-1297.62535558,0.00010978,2]
[336134668,1724706652470,-481.78464442,0.00010978,2]
[336134670,1724706652480,-276.172711,0.00010978,2]
[336134671,1724706652490,-276.172711,0.00010978,2]
[336134673,1724706652500,-500.0,0.00010978,2]
[336134675,1724706652510,-1779.41,0.00010979,2]
[336134677,1724706652519,-1779.41,0.00010979,2]
[336134679,1724706652528,-276.172711,0.00010979,2]
[336134681,1724706652538,-1779.41,0.00010979,2]
[336134683,1724706652548,-891.85607334,0.0001098,2]
[336134726,1724706652966,-677.83,0.00010948,2]
[336134728,1724706652976,-760.04327514,0.0001098,2]
[336134731,1724706652994,-500.0,0.00010979,2]
[336134733,1724706653003,-2867.5,0.0001098,2]
[336134737,1724706653069,413.4282629,0.0001,2]
[336134738,1724706653119,12307.8782,9.936e-05,2]
[336134739,1724706653317,-322.94675217,0.00010876,2]
[336134740,1724706653328,-677.83,0.00010948,2]
[336134741,1724706653337,-677.83,0.00010948,2]
[336134742,1724706653348,-677.83,0.00010948,2]
[336134743,1724706653358,-677.83,0.00010948,2]
[336134744,1724706653368,-151.84443007,0.00010948,2]
[336134745,1724706653380,-354.726,0.00010948,2]
[336134746,1724706653397,-171.25956993,0.00010948,2]
[336134747,1724706653407,-677.83,0.00010948,2]
[336134748,1724706653417,-677.83,0.00010948,2]
[336134749,1724706653427,-677.83,0.00010948,2]
[336134750,1724706653437,-677.83,0.00010948,2]
[336134751,1724706653447,-677.83,0.00010948,2]
[336134752,1724706653457,-500.0,0.00010958,2]
[336134753,1724706653468,-276.172711,0.00010977,2]
[336134754,1724706653478,-276.172711,0.00010978,2]
[336134755,1724706653488,-276.172711,0.00010978,2]
[336134756,1724706653499,-276.172711,0.00010979,2]
[336134757,1724706653508,-1918.77638607,0.0001098,2]
[336134758,1724706653542,2026.16999998,7.024e-05,2]
[336134759,1724706653559,-500.0,0.00010967,2]
[336134760,1724706653569,-69.2128866,0.0001098,2]
[336134761,1724706653600,18259.84755439,7.024e-05,2]
[336134762,1724706653672,432.12304207,7.024e-05,2]
[336134763,1724706653712,317.33662525,7.024e-05,2]
[336134764,1724706653907,423.6191647,7.024e-05,2]
[336134765,1724706653929,-677.83,0.00010948,2]
[336134767,1724706653939,-677.83,0.00010948,2]
[336134768,1724706653949,-677.83,0.00010948,2]
[336134769,1724706653958,-677.83,0.00010948,2]
[336134770,1724706653968,-475.08,0.00010948,2]
[336134771,1724706653980,-202.75,0.00010948,2]
[336134772,1724706653990,-677.83,0.00010948,2]
[336134773,1724706654002,-677.83,0.00010948,2]
[336134774,1724706654011,-677.83,0.00010948,2]
[336134775,1724706654020,-677.83,0.00010948,2]
[336134776,1724706654031,-677.83,0.00010948,2]
[336134777,1724706654041,-677.83,0.00010948,2]
[336134778,1724706654050,-500.0,0.00010976,2]
[336134779,1724706654094,-500.0,0.00010977,2]
[336134780,1724706654105,-455.37180032,0.00010977,2]
[336134781,1724706654116,-44.62819968,0.00010977,2]
[336134782,1724706654126,-500.0,0.00010978,2]
[336134783,1724706654135,-500.0,0.00010979,2]
[336134784,1724706654145,-500.0,0.00010979,2]
[336134785,1724706654154,-500.0,0.00010979,2]
[336134786,1724706654164,-34543.53211241,0.0001098,2]
[336134787,1724706654175,-6508.19025592,0.0001098,2]
[336134788,1724706654186,-11649.77714005,0.0001098,2]
[336134789,1724706654197,-1956.77125,0.0001098,2]
[336134790,1724706654279,-255.0131734,0.0001098,2]
[336134791,1724706654295,-355.85019336,0.00010948,2]
[336134792,1724706654307,-276.49980655,0.00010948,2]
[336134793,1724706654457,348.11618101,7.024e-05,2]
[336134794,1724706654497,266.81108024,7.024e-05,2]
[336134795,1724706654609,6035.41498354,7.024e-05,2]
[336134796,1724706654716,1211.51275258,7.024e-05,2]
[336134797,1724706654745,210.15341836,0.0001,2]
[336134798,1724706654808,500.0,0.0001,2]
[336134799,1724706654840,455.44624217,7.024e-05,2]
[336134800,1724706654876,155.0,7.024e-05,2]
[336134801,1724706654904,194.77593653,0.0001,2]
[336134802,1724706654949,201.81371857,7.024e-05,2]
[336134803,1724706655416,2473.58430273,7.024e-05,2]
[336134804,1724706656210,419.50258882,7.024e-05,2]
[336134805,1724706656369,155.08973884,7.024e-05,2]
[336134806,1724706657716,155.09853817,7.024e-05,2]
[336134807,1724706658921,201.26567116,7.024e-05,2]
[336134808,1724706659273,275.1054945,0.0001,2]
[336134809,1724706659917,206.04295958,7.024e-05,2]
[336134810,1724706660223,298.32761533,7.024e-05,2]
[336134811,1724706661301,159.2387282,7.024e-05,2]
[336134812,1724706666054,304.34341076,7.024e-05,2]
[336134813,1724706670551,412.45782177,7.024e-05,2]
[336134814,1724706672998,840.0,7.024e-05,2]
[336134815,1724706673373,310.0,7.024e-05,2]
[336134816,1724706678817,35748.21411799,7.024e-05,2]
[336134817,1724706680401,2586.10133667,8.514e-05,2]
[336134818,1724706680935,2504.77405588,7.024e-05,2]
[336134819,1724706691648,156.47153264,8.514e-05,2]
[336134820,1724706692927,155.10000862,8.514e-05,2]
[336134821,1724706696785,155.0,8.514e-05,2]
[336134822,1724706697567,155.0,8.514e-05,2]
[336134823,1724706699011,648.67381055,8.514e-05,2]
[336134824,1724706707219,155.0,8.514e-05,2]
[336134825,1724706707428,163.9526392,8.514e-05,2]
[336134826,1724706710883,500.0,0.0001,2]
[336134827,1724706710999,304.23449524,8.514e-05,2]
[336134828,1724706715592,411.90382157,8.514e-05,2]
[336134829,1724706716339,155.0,8.514e-05,2]
[336134830,1724706722356,23900.0,9.967e-05,2]
[336134834,1724706745188,1590.37,9.954e-05,2]
[336134835,1724706762936,1233.64,9.951e-05,2]
[336134836,1724706798015,6607.87,9.946e-05,2]
[336134837,1724706823161,442.2,8.219e-05,2]
[336134838,1724706855329,190.81194978,9.962e-05,2]
[336134839,1724706871019,1515.67531465,9.997e-05,2]
[336134840,1724706873795,186.68,9.947e-05,2]
[336134841,1724706875981,1515.67531463,9.999e-05,2]
[336134842,1724706879150,172.31,9.931e-05,2]
[336134843,1724706880978,1515.67531463,0.0001,2]
[336134844,1724706887544,155.0,0.00010009,2]
[336134845,1724706899102,412.45782177,8.219e-05,2]
[336134846,1724706926668,155.0,0.00010009,2]
[336134847,1724706929415,500.0,0.0001,2]
[336134848,1724706966355,250.0,9.947e-05,2]
[336134850,1724706985550,182.06022341,0.0001,2]
[336134851,1724707028914,500.0,0.0001,2]
[336134852,1724707036764,462.35,9.904e-05,2]
[336134853,1724707043929,500.0,0.0001,2]
[336134854,1724707044371,159.26598381,0.0001,2]
[336134855,1724707058582,1050.0,0.0001,2]
[336134856,1724707096505,182.06022341,0.0001,2]
[336134857,1724707145823,298.0841086,0.0001,2]
[336134858,1724707149960,500.0,0.0001,2]
[336134859,1724707163840,200.0,9.901e-05,2]
[336134860,1724707207515,181.55321324,0.0001,2]
[336134861,1724707230924,500.0,0.0001,2]
[336134862,1724707298403,410.37938903,0.0001,2]
[336134863,1724707323153,23900.0,9.875e-05,2]
[336134864,1724707324923,500.0,0.0001,2]
[336134865,1724707341264,616.82,9.876e-05,2]
[336134866,1724707396355,305.51506859,0.00010009,2]
[336134867,1724707402129,325.33,9.947e-05,2]
[336134868,1724707459873,433.42,8.219e-05,2]
[336134869,1724707489548,153.76,7.901e-05,2]
[336134870,1724707518707,250.0,9.891e-05,2]
[336134871,1724707519835,7593.10399418,9e-05,2]
[336134872,1724707529263,178.79,9.929e-05,2]
[336134874,1724707554566,5886.85553282,6.94e-05,2]
[336134875,1724707565958,630.12,9.944e-05,2]
[336134878,1724707621057,262.89156421,0.00010009,2]
[336134879,1724707627456,300.0,0.0001,3]
[336134889,1724707677928,500.0,0.0001,2]
[336134890,1724707684168,155.21787713,0.00010009,2]
[336134913,1724707770437,500.0,0.00010009,2]
[336134940,1724707831599,-617.617,0.000101,3]
[336134941,1724707831611,-82.383,0.000101,3]
[336134942,1724707831621,-1100.0,0.000102,3]
[336134943,1724707831630,-468.607,0.000103,3]
[336134944,1724707831641,-280.56667432,0.000103,3]
[336134945,1724707831659,-750.82632568,0.000103,3]
[336134946,1724707831668,-1800.0,0.000104,3]
[336134947,1724707831678,-433.42,0.0001047,2]
[336134948,1724707831687,-421.62,0.000105,2]
[336134949,1724707831697,-300.0,0.000105,3]
[336134950,1724707831706,-150.0,0.00010591,2]
[336134951,1724707831716,-300.0,0.000106,3]
[336134952,1724707831726,-420.25,0.00010645,2]
[336134953,1724707831737,-300.0,0.00010698,2]
[336134954,1724707831746,-300.0,0.00010698,2]
[336134955,1724707831756,-1686.5379,0.00010699,2]
[336134956,1724707831765,-1910.0835,0.00010699,2]
[336134957,1724707831775,-300.0,0.000107,3]
[336134958,1724707831784,-170.04441282,0.000107,2]
[336134959,1724707831794,-150.0,0.00010789,2]
[336134960,1724707831804,-150.6,0.0001079,2]
[336134961,1724707831813,-150.6,0.0001079,2]
[336134962,1724707831823,-150.6,0.0001079,2]
[336134963,1724707831833,-150.6,0.0001079,2]
[336134964,1724707831843,-150.6,0.0001079,2]
[336134965,1724707831852,-150.6,0.0001079,2]
[336134966,1724707831861,-150.6,0.0001079,2]
[336134967,1724707831872,-150.6,0.0001079,2]
[336134968,1724707831882,-150.6,0.0001079,2]
[336134969,1724707831892,-150.6,0.0001079,2]
[336134970,1724707831902,-150.6,0.0001079,2]
[336134971,1724707831911,-150.6,0.0001079,2]
[336134972,1724707831921,-150.6,0.0001079,2]
[336134973,1724707831930,-150.6,0.0001079,2]
[336134974,1724707831940,-150.6,0.0001079,2]
[336134975,1724707831950,-150.6,0.0001079,2]
[336134976,1724707831959,-150.6,0.0001079,2]
[336134977,1724707831968,-150.6,0.0001079,2]
[336134978,1724707831977,-150.6,0.0001079,2]
[336134979,1724707831987,-150.6,0.0001079,2]
[336134980,1724707831996,-150.6,0.0001079,2]
[336134981,1724707832005,-90.05596538,0.0001079,2]
[336134982,1724707832017,-60.54403462,0.0001079,2]
[336134983,1724707832026,-150.6,0.0001079,2]
[336134984,1724707832035,-150.6,0.0001079,2]
[336134985,1724707832045,-150.6,0.0001079,2]
[336134987,1724707832054,-150.6,0.0001079,2]
[336134988,1724707832063,-150.6,0.0001079,2]
[336134990,1724707832073,-150.6,0.0001079,2]
[336134992,1724707832082,-150.6,0.0001079,2]
[336134993,1724707832091,-150.6,0.0001079,2]
[336134994,1724707832100,-150.6,0.0001079,2]
[336134995,1724707832110,-150.6,0.0001079,2]
[336134996,1724707832119,-150.6,0.0001079,2]
[336134997,1724707832129,-150.6,0.0001079,2]
[336134998,1724707832143,-150.6,0.0001079,2]
[336134999,1724707832152,-150.6,0.0001079,2]
[336135000,1724707832161,-150.6,0.0001079,2]
[336135001,1724707832171,-150.6,0.0001079,2]